[Event "Titled Tuesday Blitz May 23 Late 2023"]
[White "Haydon, David L"]
[Black "Perez, Maximiliano"]
[WhiteFideId "415405"]
[BlackFideId "117234"]
[WhiteElo "2326"]
[BlackElo "2344"]
[Result "1-0"]
[Round "07"]
[TimeControl "180+2"]
[Date "2023.05.23"]
[WhiteClock "0:00:29"]
[BlackClock "0:00:06"]

1. e4 {[%clk 0:03:00]}  c5 {[%clk 0:02:53]} 2. Nf3 {[%clk 0:03:00]}  d6 {[%clk 0:02:48]} 3. Bb5+ {[%clk 0:02:59]}  Nd7 {[%clk 0:02:44]} 4. a4 {[%clk 0:02:59]}  Nf6 {[%clk 0:02:43]} 5. Qe2 {[%clk 0:02:57]}  e6 {[%clk 0:02:40]} 6. c3 {[%clk 0:02:55]}  Be7 {[%clk 0:02:37]} 7. O-O {[%clk 0:02:53]}  O-O {[%clk 0:02:36]} 8. d4 {[%clk 0:02:52]}  cxd4 {[%clk 0:02:34]} 9. cxd4 {[%clk 0:02:52]}  a6 {[%clk 0:02:31]} 10. Bd3 {[%clk 0:02:51]}  e5 {[%clk 0:02:30]} 11. Nc3 {[%clk 0:02:50]}  exd4 {[%clk 0:02:29]} 12. Nxd4 {[%clk 0:02:49]}  Nc5 {[%clk 0:02:28]} 13. Bc2 {[%clk 0:02:49]}  Re8 {[%clk 0:02:28]} 14. Rd1 {[%clk 0:02:49]}  Bf8 {[%clk 0:02:25]} 15. Nb3 {[%clk 0:02:42]}  Qc7 {[%clk 0:02:02]} 16. Nxc5 {[%clk 0:02:40]}  dxc5 {[%clk 0:02:01]} 17. f3 {[%clk 0:02:38]}  Bd6 {[%clk 0:02:00]} 18. g3 {[%clk 0:02:33]}  Be5 {[%clk 0:01:55]} 19. Be3 {[%clk 0:02:30]}  Bd7 {[%clk 0:01:41]} 20. a5 {[%clk 0:02:29]}  Rac8 {[%clk 0:01:37]} 21. Qf2 {[%clk 0:02:28]}  Bb5 {[%clk 0:01:29]} 22. Rd2 {[%clk 0:02:24]}  h5 {[%clk 0:01:28]} 23. Bb3 {[%clk 0:01:58]}  h4 {[%clk 0:01:24]} 24. gxh4 {[%clk 0:01:55]}  Bf4 {[%clk 0:01:09]} 25. Nd5 {[%clk 0:01:50]}  Nxd5 {[%clk 0:01:09]} 26. Bxd5 {[%clk 0:01:47]}  Bxe3 {[%clk 0:00:53]} 27. Qxe3 {[%clk 0:01:45]}  Qe7 {[%clk 0:00:52]} 28. Qg5 {[%clk 0:01:43]}  c4 {[%clk 0:00:46]} 29. Qxe7 {[%clk 0:01:41]}  Rxe7 {[%clk 0:00:47]} 30. Rc1 {[%clk 0:01:38]}  Rec7 {[%clk 0:00:47]} 31. Rdc2 {[%clk 0:01:27]}  g6 {[%clk 0:00:43]} 32. Kf2 {[%clk 0:01:26]}  Kg7 {[%clk 0:00:42]} 33. Ke3 {[%clk 0:01:26]}  Rh8 {[%clk 0:00:23]} 34. Bxc4 {[%clk 0:01:18]}  Bxc4 {[%clk 0:00:24]} 35. Rxc4 {[%clk 0:01:18]}  Rxc4 {[%clk 0:00:25]} 36. Rxc4 {[%clk 0:01:17]}  Rxh4 {[%clk 0:00:26]} 37. Rb4 {[%clk 0:01:07]}  Rh5 {[%clk 0:00:21]} 38. Rxb7 {[%clk 0:01:00]}  Rxa5 {[%clk 0:00:21]} 39. Kf4 {[%clk 0:00:58]}  Rh5 {[%clk 0:00:19]} 40. Kg3 {[%clk 0:00:57]}  a5 {[%clk 0:00:20]} 41. h4 {[%clk 0:00:57]}  Rc5 {[%clk 0:00:20]} 42. Kf4 {[%clk 0:00:53]}  Rc1 {[%clk 0:00:19]} 43. e5 {[%clk 0:00:51]}  Re1 {[%clk 0:00:18]} 44. Rb5 {[%clk 0:00:49]}  a4 {[%clk 0:00:18]} 45. Rb4 {[%clk 0:00:49]}  Re2 {[%clk 0:00:17]} 46. Rb7 {[%clk 0:00:45]}  Rh2 {[%clk 0:00:17]} 47. e6 {[%clk 0:00:43]}  Rxh4+ {[%clk 0:00:16]} 48. Kg3 {[%clk 0:00:42]}  Rc4 {[%clk 0:00:15]} 49. Rxf7+ {[%clk 0:00:41]}  Kg8 {[%clk 0:00:15]} 50. Rb7 {[%clk 0:00:36]}  Rc6 {[%clk 0:00:06]} 51. Rb8+ {[%clk 0:00:29]} 1-0


[Site "https://www.chess.com"]

[Event "Titled Tuesday Blitz May 23 Late 2023"]
[White "Ognean, Mihnea-Ionut"]
[Black "carokannlover213"]
[WhiteFideId "1232347"]
[WhiteElo "2215"]
[BlackElo "2667"]
[Result "0-1"]
[Round "07"]
[TimeControl "180+2"]
[Date "2023.05.23"]
[WhiteClock "0:00:07"]
[BlackClock "0:00:09"]

1. Nf3 {[%clk 0:03:00]}  Nf6 {[%clk 0:02:59]} 2. d4 {[%clk 0:02:59]}  e6 {[%clk 0:02:59]} 3. e3 {[%clk 0:02:58]}  d5 {[%clk 0:02:59]} 4. b3 {[%clk 0:02:58]}  c5 {[%clk 0:02:58]} 5. Bb2 {[%clk 0:02:58]}  Nc6 {[%clk 0:02:59]} 6. Nbd2 {[%clk 0:02:57]}  Be7 {[%clk 0:02:55]} 7. a3 {[%clk 0:02:56]}  O-O {[%clk 0:02:55]} 8. Bd3 {[%clk 0:02:57]}  b6 {[%clk 0:02:55]} 9. O-O {[%clk 0:02:56]}  a5 {[%clk 0:02:56]} 10. Ne5 {[%clk 0:02:52]}  Nxe5 {[%clk 0:02:39]} 11. dxe5 {[%clk 0:02:53]}  Nd7 {[%clk 0:02:39]} 12. f4 {[%clk 0:02:42]}  f5 {[%clk 0:02:25]} 13. exf6 {[%clk 0:02:39]}  Nxf6 {[%clk 0:02:15]} 14. e4 {[%clk 0:02:39]}  Bb7 {[%clk 0:01:28]} 15. e5 {[%clk 0:02:33]}  Ne4 {[%clk 0:01:10]} 16. Nxe4 {[%clk 0:02:17]}  dxe4 {[%clk 0:01:11]} 17. Bc4 {[%clk 0:02:18]}  Bd5 {[%clk 0:01:12]} 18. Qe2 {[%clk 0:02:16]}  Bxc4 {[%clk 0:01:03]} 19. Qxc4 {[%clk 0:02:15]}  Qd5 {[%clk 0:01:04]} 20. Qe2 {[%clk 0:02:09]}  c4 {[%clk 0:00:52]} 21. Rad1 {[%clk 0:02:08]}  Qc6 {[%clk 0:00:47]} 22. Bd4 {[%clk 0:01:51]}  Bxa3 {[%clk 0:00:44]} 23. Qg4 {[%clk 0:01:43]}  cxb3 {[%clk 0:00:37]} 24. cxb3 {[%clk 0:01:44]}  Rad8 {[%clk 0:00:37]} 25. Kh1 {[%clk 0:01:39]}  Rd7 {[%clk 0:00:32]} 26. f5 {[%clk 0:01:35]}  exf5 {[%clk 0:00:26]} 27. Qg5 {[%clk 0:00:42]}  Qe6 {[%clk 0:00:26]} 28. Ba1 {[%clk 0:00:37]}  Be7 {[%clk 0:00:25]} 29. Qe3 {[%clk 0:00:36]}  Rfd8 {[%clk 0:00:22]} 30. Rc1 {[%clk 0:00:32]}  Rd3 {[%clk 0:00:19]} 31. Qf4 {[%clk 0:00:29]}  Rxb3 {[%clk 0:00:17]} 32. Qxf5 {[%clk 0:00:27]}  Qxf5 {[%clk 0:00:18]} 33. Rxf5 {[%clk 0:00:28]}  e3 {[%clk 0:00:17]} 34. e6 {[%clk 0:00:27]}  e2 {[%clk 0:00:14]} 35. Rg1 {[%clk 0:00:10]}  Rd1 {[%clk 0:00:14]} 36. Re5 {[%clk 0:00:10]}  Rxg1+ {[%clk 0:00:12]} 37. Kxg1 {[%clk 0:00:11]}  Bc5+ {[%clk 0:00:11]} 38. Rxc5 {[%clk 0:00:09]}  Rb1+ {[%clk 0:00:10]} 39. Kf2 {[%clk 0:00:09]}  e1=Q+ {[%clk 0:00:10]} 40. Kf3 {[%clk 0:00:10]}  bxc5 {[%clk 0:00:11]} 41. e7 {[%clk 0:00:07]}  Qxe7 {[%clk 0:00:09]} 0-1


[Site "https://www.chess.com"]

[Event "Titled Tuesday Blitz May 23 Late 2023"]
[White "Kleiman, Jake"]
[Black "reevecanada"]
[WhiteFideId "2020041"]
[WhiteElo "2619"]
[BlackElo "2446"]
[Result "1-0"]
[Round "07"]
[TimeControl "180+2"]
[Date "2023.05.23"]
[WhiteClock "0:01:02"]
[BlackClock "0:00:03"]

1. e4 {[%clk 0:03:00]}  c5 {[%clk 0:00:22]} 2. c3 {[%clk 0:03:00]}  Nf6 {[%clk 0:00:22]} 3. e5 {[%clk 0:03:00]}  Nd5 {[%clk 0:00:22]} 4. Bc4 {[%clk 0:03:01]}  Nb6 {[%clk 0:00:21]} 5. Bb3 {[%clk 0:03:01]}  e6 {[%clk 0:00:21]} 6. Nf3 {[%clk 0:03:02]}  d6 {[%clk 0:00:20]} 7. d4 {[%clk 0:03:01]}  cxd4 {[%clk 0:00:19]} 8. cxd4 {[%clk 0:03:01]}  Nc6 {[%clk 0:00:19]} 9. Qe2 {[%clk 0:03:01]}  d5 {[%clk 0:00:19]} 10. Nc3 {[%clk 0:03:01]}  Be7 {[%clk 0:00:18]} 11. O-O {[%clk 0:02:59]}  O-O {[%clk 0:00:19]} 12. a3 {[%clk 0:02:56]}  Bd7 {[%clk 0:00:19]} 13. Bc2 {[%clk 0:02:56]}  Rc8 {[%clk 0:00:18]} 14. Qd3 {[%clk 0:02:56]}  g6 {[%clk 0:00:18]} 15. Bh6 {[%clk 0:02:57]}  Re8 {[%clk 0:00:16]} 16. Rad1 {[%clk 0:02:56]}  Bf8 {[%clk 0:00:15]} 17. Bg5 {[%clk 0:02:55]}  Be7 {[%clk 0:00:15]} 18. Bh6 {[%clk 0:02:52]}  Bf8 {[%clk 0:00:15]} 19. Bc1 {[%clk 0:02:45]}  Na5 {[%clk 0:00:13]} 20. Bb1 {[%clk 0:02:40]}  Nac4 {[%clk 0:00:13]} 21. Rfe1 {[%clk 0:02:37]}  a5 {[%clk 0:00:12]} 22. h4 {[%clk 0:02:37]}  a4 {[%clk 0:00:12]} 23. h5 {[%clk 0:02:36]}  Na5 {[%clk 0:00:13]} 24. Bg5 {[%clk 0:02:30]}  Qc7 {[%clk 0:00:12]} 25. Rc1 {[%clk 0:02:28]}  Nbc4 {[%clk 0:00:11]} 26. Re2 {[%clk 0:02:26]}  Nb3 {[%clk 0:00:12]} 27. Rcc2 {[%clk 0:02:23]}  Qa5 {[%clk 0:00:12]} 28. hxg6 {[%clk 0:02:18]}  hxg6 {[%clk 0:00:13]} 29. Nh4 {[%clk 0:02:15]}  Nxb2 {[%clk 0:00:13]} 30. Qe3 {[%clk 0:01:48]}  Nc4 {[%clk 0:00:12]} 31. Qg3 {[%clk 0:01:15]}  Nxd4 {[%clk 0:00:11]} 32. Bf6 {[%clk 0:01:05]}  Nxe2+ {[%clk 0:00:10]} 33. Rxe2 {[%clk 0:01:05]}  Nd6 {[%clk 0:00:04]} 34. Bxg6 {[%clk 0:01:02]}  Bg7 {[%clk 0:00:03]} 35. Bxf7+ {[%clk 0:01:01]}  Kxf7 {[%clk 0:00:03]} 36. Qxg7# {[%clk 0:01:02]} 1-0


[Site "https://www.chess.com"]

[Event "Titled Tuesday Blitz May 23 Late 2023"]
[White "Bach, Matthias"]
[Black "Fridman, Daniel"]
[WhiteFideId "4603168"]
[BlackFideId "11600454"]
[WhiteElo "2130"]
[BlackElo "2525"]
[Result "0-1"]
[Round "07"]
[TimeControl "180+2"]
[Date "2023.05.23"]
[WhiteClock "0:00:16"]
[BlackClock "0:00:55"]

1. d4 {[%clk 0:02:23]}  d5 {[%clk 0:02:53]} 2. c4 {[%clk 0:02:24]}  e6 {[%clk 0:02:53]} 3. Nc3 {[%clk 0:02:24]}  c5 {[%clk 0:02:53]} 4. cxd5 {[%clk 0:02:22]}  cxd4 {[%clk 0:02:54]} 5. Qxd4 {[%clk 0:02:21]}  Nc6 {[%clk 0:02:53]} 6. Qa4 {[%clk 0:02:21]}  exd5 {[%clk 0:02:53]} 7. Nf3 {[%clk 0:02:18]}  d4 {[%clk 0:02:53]} 8. Nb5 {[%clk 0:02:16]}  Bb4+ {[%clk 0:02:53]} 9. Bd2 {[%clk 0:02:15]}  Bxd2+ {[%clk 0:02:53]} 10. Nxd2 {[%clk 0:02:14]}  a6 {[%clk 0:02:52]} 11. Na3 {[%clk 0:02:13]}  Nf6 {[%clk 0:02:45]} 12. g3 {[%clk 0:02:13]}  Qd5 {[%clk 0:02:42]} 13. Nf3 {[%clk 0:02:11]}  b5 {[%clk 0:02:38]} 14. Qb3 {[%clk 0:02:08]}  Qxb3 {[%clk 0:02:38]} 15. axb3 {[%clk 0:02:08]}  Be6 {[%clk 0:02:35]} 16. b4 {[%clk 0:02:06]}  Rd8 {[%clk 0:02:29]} 17. Nc2 {[%clk 0:01:49]}  Nd5 {[%clk 0:02:17]} 18. Rxa6 {[%clk 0:01:42]}  Ndxb4 {[%clk 0:02:17]} 19. Nxb4 {[%clk 0:01:39]}  Nxb4 {[%clk 0:02:18]} 20. Ra7 {[%clk 0:01:36]}  O-O {[%clk 0:02:14]} 21. Bg2 {[%clk 0:01:32]}  Bc4 {[%clk 0:02:11]} 22. Kd2 {[%clk 0:01:27]}  Rfe8 {[%clk 0:02:07]} 23. Re1 {[%clk 0:01:26]}  Rd6 {[%clk 0:01:39]} 24. Ng5 {[%clk 0:01:23]}  h6 {[%clk 0:01:33]} 25. Ne4 {[%clk 0:01:19]}  Rde6 {[%clk 0:01:33]} 26. e3 {[%clk 0:01:06]}  Rxe4 {[%clk 0:01:28]} 27. Bxe4 {[%clk 0:01:05]}  Rxe4 {[%clk 0:01:29]} 28. exd4 {[%clk 0:01:04]}  Rxd4+ {[%clk 0:01:22]} 29. Kc3 {[%clk 0:01:03]}  Nc6 {[%clk 0:01:23]} 30. Ra8+ {[%clk 0:01:01]}  Kh7 {[%clk 0:01:22]} 31. Re3 {[%clk 0:00:56]}  b4+ {[%clk 0:01:19]} 32. Kc2 {[%clk 0:00:55]}  Rd6 {[%clk 0:01:18]} 33. b3 {[%clk 0:00:54]}  Nd4+ {[%clk 0:01:15]} 34. Kb2 {[%clk 0:00:52]}  Bxb3 {[%clk 0:01:08]} 35. Rxb3 {[%clk 0:00:51]}  Nxb3 {[%clk 0:01:08]} 36. Kxb3 {[%clk 0:00:51]}  Rd2 {[%clk 0:01:00]} 37. Ra2 {[%clk 0:00:35]}  Rxa2 {[%clk 0:00:58]} 38. Kxa2 {[%clk 0:00:35]}  Kg6 {[%clk 0:00:59]} 39. Kb3 {[%clk 0:00:35]}  Kf5 {[%clk 0:00:59]} 40. f3 {[%clk 0:00:34]}  Ke5 {[%clk 0:00:59]} 41. Kxb4 {[%clk 0:00:31]}  Kd4 {[%clk 0:00:59]} 42. f4 {[%clk 0:00:29]}  h5 {[%clk 0:00:59]} 43. Kb5 {[%clk 0:00:27]}  h4 {[%clk 0:00:55]} 44. Kc6 {[%clk 0:00:23]}  h3 {[%clk 0:00:54]} 45. Kd7 {[%clk 0:00:22]}  Ke4 {[%clk 0:00:54]} 46. Ke7 {[%clk 0:00:22]}  f5 {[%clk 0:00:54]} 47. Kf7 {[%clk 0:00:21]}  Kf3 {[%clk 0:00:55]} 48. Kxg7 {[%clk 0:00:21]}  Kg2 {[%clk 0:00:55]} 49. Kg6 {[%clk 0:00:20]}  Kxh2 {[%clk 0:00:55]} 50. Kxf5 {[%clk 0:00:16]}  Kxg3 {[%clk 0:00:55]} 0-1


[Site "https://www.chess.com"]

[Event "Titled Tuesday Blitz May 23 Late 2023"]
[White "Rozman, Levy"]
[Black "Kaplan, Avi Harrison"]
[WhiteFideId "2039877"]
[BlackFideId "30934559"]
[WhiteElo "2376"]
[BlackElo "1983"]
[Result "1-0"]
[Round "07"]
[TimeControl "180+2"]
[Date "2023.05.23"]
[WhiteClock "0:01:39"]
[BlackClock "0:00:02"]

1. e4 {[%clk 0:02:59]}  c5 {[%clk 0:02:59]} 2. Nc3 {[%clk 0:02:59]}  a6 {[%clk 0:02:59]} 3. d4 {[%clk 0:02:59]}  cxd4 {[%clk 0:02:58]} 4. Qxd4 {[%clk 0:03:00]}  e6 {[%clk 0:02:51]} 5. Be3 {[%clk 0:02:59]}  Nc6 {[%clk 0:02:49]} 6. Qd2 {[%clk 0:02:59]}  Nf6 {[%clk 0:02:48]} 7. O-O-O {[%clk 0:02:59]}  Bb4 {[%clk 0:02:48]} 8. f3 {[%clk 0:02:59]}  Qa5 {[%clk 0:02:48]} 9. Nge2 {[%clk 0:02:58]}  d5 {[%clk 0:02:40]} 10. a3 {[%clk 0:02:58]}  Bxa3 {[%clk 0:02:10]} 11. bxa3 {[%clk 0:02:55]}  Qxa3+ {[%clk 0:02:11]} 12. Kb1 {[%clk 0:02:56]}  dxe4 {[%clk 0:01:47]} 13. Qd6 {[%clk 0:02:39]}  Qxd6 {[%clk 0:01:27]} 14. Rxd6 {[%clk 0:02:38]}  exf3 {[%clk 0:01:27]} 15. gxf3 {[%clk 0:02:39]}  e5 {[%clk 0:01:18]} 16. Rg1 {[%clk 0:02:37]}  Be6 {[%clk 0:00:47]} 17. Rxg7 {[%clk 0:02:32]}  Rc8 {[%clk 0:00:44]} 18. Ne4 {[%clk 0:02:21]}  Nxe4 {[%clk 0:00:37]} 19. fxe4 {[%clk 0:02:20]}  Nb4 {[%clk 0:00:34]} 20. c3 {[%clk 0:02:01]}  Nc6 {[%clk 0:00:25]} 21. Bg5 {[%clk 0:01:56]}  Ne7 {[%clk 0:00:15]} 22. Rxe6 {[%clk 0:01:54]}  fxe6 {[%clk 0:00:14]} 23. Rxe7+ {[%clk 0:01:54]}  Kf8 {[%clk 0:00:15]} 24. Rxb7 {[%clk 0:01:48]}  h6 {[%clk 0:00:10]} 25. Bf6 {[%clk 0:01:47]}  Rg8 {[%clk 0:00:10]} 26. Bh3 {[%clk 0:01:47]}  Rc6 {[%clk 0:00:07]} 27. Bxe5 {[%clk 0:01:45]}  Rg6 {[%clk 0:00:02]} 28. Nf4 {[%clk 0:01:45]}  Rg1+ {[%clk 0:00:02]} 29. Kb2 {[%clk 0:01:45]}  Rh1 {[%clk 0:00:02]} 30. Nxe6+ {[%clk 0:01:43]}  Kg8 {[%clk 0:00:02]} 31. Rg7+ {[%clk 0:01:38]}  Kh8 {[%clk 0:00:02]} 32. Rg6+ {[%clk 0:01:38]}  Kh7 {[%clk 0:00:02]} 33. Nf8# {[%clk 0:01:39]} 1-0


[Site "https://www.chess.com"]

[Event "Titled Tuesday Blitz May 23 Late 2023"]
[White "SergioMoralesG"]
[Black "Chen, Ryo"]
[BlackFideId "7003072"]
[WhiteElo "2455"]
[BlackElo "2169"]
[Result "1/2-1/2"]
[Round "07"]
[TimeControl "180+2"]
[Date "2023.05.23"]
[WhiteClock "0:00:03"]
[BlackClock "0:00:16"]

1. d4 {[%clk 0:03:00]}  Nf6 {[%clk 0:02:58]} 2. c4 {[%clk 0:03:01]}  g6 {[%clk 0:02:59]} 3. Nc3 {[%clk 0:03:00]}  Bg7 {[%clk 0:02:58]} 4. e4 {[%clk 0:03:01]}  d6 {[%clk 0:02:57]} 5. Be2 {[%clk 0:03:01]}  O-O {[%clk 0:02:57]} 6. Nf3 {[%clk 0:03:01]}  e5 {[%clk 0:02:53]} 7. Be3 {[%clk 0:02:59]}  Ng4 {[%clk 0:02:51]} 8. Bg5 {[%clk 0:02:59]}  f6 {[%clk 0:02:49]} 9. Bh4 {[%clk 0:02:59]}  g5 {[%clk 0:02:47]} 10. Bg3 {[%clk 0:03:00]}  Nh6 {[%clk 0:02:48]} 11. h3 {[%clk 0:02:59]}  Nc6 {[%clk 0:02:44]} 12. d5 {[%clk 0:02:58]}  Ne7 {[%clk 0:02:39]} 13. O-O {[%clk 0:02:57]}  Ng6 {[%clk 0:02:33]} 14. Re1 {[%clk 0:02:37]}  f5 {[%clk 0:02:26]} 15. exf5 {[%clk 0:02:33]}  Nxf5 {[%clk 0:02:27]} 16. Ne4 {[%clk 0:02:31]}  h6 {[%clk 0:02:19]} 17. Rc1 {[%clk 0:02:23]}  Nf4 {[%clk 0:02:17]} 18. Bf1 {[%clk 0:02:22]}  b6 {[%clk 0:02:09]} 19. b4 {[%clk 0:02:21]}  a5 {[%clk 0:02:08]} 20. a3 {[%clk 0:02:19]}  axb4 {[%clk 0:02:06]} 21. axb4 {[%clk 0:02:20]}  Bd7 {[%clk 0:02:06]} 22. c5 {[%clk 0:02:17]}  bxc5 {[%clk 0:02:03]} 23. bxc5 {[%clk 0:02:18]}  Ba4 {[%clk 0:01:58]} 24. Qd2 {[%clk 0:02:14]}  Nxg3 {[%clk 0:01:54]} 25. fxg3 {[%clk 0:02:12]}  Nxh3+ {[%clk 0:01:46]} 26. Kh2 {[%clk 0:01:45]}  g4 {[%clk 0:01:45]} 27. Nh4 {[%clk 0:01:41]}  Ng5 {[%clk 0:01:45]} 28. Bd3 {[%clk 0:01:32]}  Be8 {[%clk 0:01:28]} 29. c6 {[%clk 0:01:29]}  Nxe4 {[%clk 0:01:21]} 30. Bxe4 {[%clk 0:01:28]}  Qg5 {[%clk 0:01:21]} 31. Qc2 {[%clk 0:01:12]}  Bf6 {[%clk 0:01:19]} 32. Rb1 {[%clk 0:01:05]}  Qh5 {[%clk 0:01:15]} 33. Bg6 {[%clk 0:00:45]}  Bxg6 {[%clk 0:01:14]} 34. Qxg6+ {[%clk 0:00:46]}  Qxg6 {[%clk 0:01:14]} 35. Nxg6 {[%clk 0:00:46]}  Rfb8 {[%clk 0:01:10]} 36. Rb7 {[%clk 0:00:28]}  Rxb7 {[%clk 0:00:59]} 37. cxb7 {[%clk 0:00:29]}  Rb8 {[%clk 0:00:59]} 38. Rb1 {[%clk 0:00:18]}  Kg7 {[%clk 0:00:57]} 39. Nh4 {[%clk 0:00:17]}  Bxh4 {[%clk 0:00:57]} 40. gxh4 {[%clk 0:00:18]}  Kf6 {[%clk 0:00:56]} 41. Kg3 {[%clk 0:00:17]}  h5 {[%clk 0:00:56]} 42. Kf2 {[%clk 0:00:16]}  Ke7 {[%clk 0:00:56]} 43. Ke3 {[%clk 0:00:15]}  Kd7 {[%clk 0:00:57]} 44. Ke4 {[%clk 0:00:15]}  c6 {[%clk 0:00:57]} 45. Rb6 {[%clk 0:00:08]}  c5 {[%clk 0:00:45]} 46. Kd3 {[%clk 0:00:08]}  Ke7 {[%clk 0:00:38]} 47. Ke4 {[%clk 0:00:07]}  c4 {[%clk 0:00:38]} 48. g3 {[%clk 0:00:05]}  Kd7 {[%clk 0:00:37]} 49. Kf5 {[%clk 0:00:05]}  c3 {[%clk 0:00:31]} 50. Rc6 {[%clk 0:00:03]}  Rxb7 {[%clk 0:00:29]} 51. Rxc3 {[%clk 0:00:04]}  Rb4 {[%clk 0:00:24]} 52. Kg6 {[%clk 0:00:03]}  Rd4 {[%clk 0:00:24]} 53. Kxh5 {[%clk 0:00:01]}  Rxd5 {[%clk 0:00:25]} 54. Kg5 {[%clk 0:00:02]}  Ke6 {[%clk 0:00:24]} 55. h5 {[%clk 0:00:02]}  e4+ {[%clk 0:00:22]} 56. Kg6 {[%clk 0:00:03]}  Rf5 {[%clk 0:00:20]} 57. h6 {[%clk 0:00:03]}  Rf6+ {[%clk 0:00:19]} 58. Kg7 {[%clk 0:00:04]}  Rf7+ {[%clk 0:00:19]} 59. Kg6 {[%clk 0:00:03]}  Rf6+ {[%clk 0:00:16]} 60. Kg7 {[%clk 0:00:03]}  Rf7+ {[%clk 0:00:16]} 61. Kg6 {[%clk 0:00:03]}  Rf6+ {[%clk 0:00:16]} 1/2-1/2


[Site "https://www.chess.com"]

[Event "Titled Tuesday Blitz May 23 Late 2023"]
[White "Weetik, Vjacheslav"]
[Black "Buchenau, Frank"]
[WhiteFideId "4153472"]
[BlackFideId "4604350"]
[WhiteElo "2469"]
[BlackElo "2157"]
[Result "1-0"]
[Round "07"]
[TimeControl "180+2"]
[Date "2023.05.23"]
[WhiteClock "0:00:08"]
[BlackClock "0:00:00"]

1. d4 {[%clk 0:02:59]}  e6 {[%clk 0:03:00]} 2. c4 {[%clk 0:02:58]}  Nf6 {[%clk 0:03:00]} 3. g3 {[%clk 0:02:58]}  d5 {[%clk 0:02:59]} 4. Nf3 {[%clk 0:02:57]}  c5 {[%clk 0:03:00]} 5. cxd5 {[%clk 0:02:53]}  Nxd5 {[%clk 0:02:59]} 6. e4 {[%clk 0:02:49]}  Nf6 {[%clk 0:02:50]} 7. Nc3 {[%clk 0:02:48]}  cxd4 {[%clk 0:02:46]} 8. Qxd4 {[%clk 0:02:40]}  Qxd4 {[%clk 0:02:33]} 9. Nxd4 {[%clk 0:02:40]}  a6 {[%clk 0:02:19]} 10. Bg2 {[%clk 0:02:14]}  Bc5 {[%clk 0:02:17]} 11. Nb3 {[%clk 0:02:10]}  Ba7 {[%clk 0:02:12]} 12. f4 {[%clk 0:01:56]}  Nc6 {[%clk 0:02:09]} 13. e5 {[%clk 0:01:56]}  Ng4 {[%clk 0:02:05]} 14. Ne4 {[%clk 0:01:55]}  O-O {[%clk 0:02:02]} 15. Ke2 {[%clk 0:01:47]}  f6 {[%clk 0:01:54]} 16. h3 {[%clk 0:01:44]}  Nh6 {[%clk 0:01:47]} 17. exf6 {[%clk 0:01:44]}  gxf6 {[%clk 0:01:47]} 18. Be3 {[%clk 0:01:37]}  Bxe3 {[%clk 0:01:44]} 19. Kxe3 {[%clk 0:01:38]}  Nf5+ {[%clk 0:01:43]} 20. Kf2 {[%clk 0:01:38]}  e5 {[%clk 0:01:14]} 21. Rac1 {[%clk 0:01:18]}  exf4 {[%clk 0:01:09]} 22. gxf4 {[%clk 0:01:17]}  Be6 {[%clk 0:01:03]} 23. Nbc5 {[%clk 0:01:13]}  Bc8 {[%clk 0:00:39]} 24. Rhd1 {[%clk 0:01:00]}  Ncd4 {[%clk 0:00:35]} 25. Nd6 {[%clk 0:00:48]}  Nxd6 {[%clk 0:00:27]} 26. Rxd4 {[%clk 0:00:48]}  Nf5 {[%clk 0:00:19]} 27. Rb4 {[%clk 0:00:46]}  Rd8 {[%clk 0:00:16]} 28. Rc2 {[%clk 0:00:41]}  Ra7 {[%clk 0:00:16]} 29. Nxb7 {[%clk 0:00:35]}  Bxb7 {[%clk 0:00:14]} 30. Rxb7 {[%clk 0:00:32]}  Rxb7 {[%clk 0:00:14]} 31. Bxb7 {[%clk 0:00:33]}  Rd4 {[%clk 0:00:14]} 32. Bxa6 {[%clk 0:00:29]}  Rxf4+ {[%clk 0:00:14]} 33. Ke1 {[%clk 0:00:29]}  Re4+ {[%clk 0:00:13]} 34. Re2 {[%clk 0:00:23]}  Ra4 {[%clk 0:00:09]} 35. Bb5 {[%clk 0:00:23]}  Rh4 {[%clk 0:00:05]} 36. Rf2 {[%clk 0:00:11]}  Nd4 {[%clk 0:00:04]} 37. Bf1 {[%clk 0:00:10]}  Kf7 {[%clk 0:00:04]} 38. Kd2 {[%clk 0:00:10]}  Re4 {[%clk 0:00:04]} 39. Kd3 {[%clk 0:00:09]}  Rh4 {[%clk 0:00:04]} 40. Kc3 {[%clk 0:00:08]}  Nc6 {[%clk 0:00:03]} 41. a3 {[%clk 0:00:07]}  Ke7 {[%clk 0:00:03]} 42. b4 {[%clk 0:00:07]}  Ke6 {[%clk 0:00:02]} 43. Bc4+ {[%clk 0:00:07]}  Ke5 {[%clk 0:00:01]} 44. Bf1 {[%clk 0:00:08]}  Nd4 {[%clk 0:00:01]} 45. Rd2 {[%clk 0:00:08]}  Nf3 {[%clk 0:00:00]} 46. Rd8 {[%clk 0:00:08]} 1-0


[Site "https://www.chess.com"]